fUSD/lending_fUSD_20240712
["ID","MTS","AMOUNT","RATE_DAILY","PERIOD"]
[331748398,1720749041181,-500.0,0.00013795,2]
[331748399,1720749041190,-500.0,0.00013795,2]
[331748400,1720749041199,-500.0,0.00013795,2]
[331748401,1720749041209,-500.0,0.00013795,2]
[331748402,1720749041218,-500.0,0.00013795,2]
[331748403,1720749041227,-610.28,0.00013795,2]
[331748404,1720749041237,-502.2291018,0.00013795,2]
[331748405,1720749041246,-500.0,0.00013795,2]
[331748406,1720749041255,-500.0,0.00013795,2]
[331748407,1720749041264,-500.0,0.00013795,2]
[331748408,1720749041272,-500.0,0.00013795,2]
[331748409,1720749041281,-500.0,0.00013795,2]
[331748410,1720749041290,-764.3,0.00013795,2]
[331748411,1720749041298,-500.0,0.00013795,2]
[331748412,1720749041307,-500.0,0.00013795,2]
[331748413,1720749041317,-500.0,0.00013795,2]
[331748414,1720749041326,-500.0,0.00013795,2]
[331748415,1720749041335,-500.0,0.00013795,2]
[331748416,1720749041343,-500.0,0.00013795,2]
[331748417,1720749041353,-525.19882331,0.00013795,2]
[331748418,1720749041361,-501.12411918,0.00013795,2]
[331748419,1720749041371,-500.0,0.00013795,2]
[331748420,1720749041381,-500.0,0.00013795,2]
[331748421,1720749041390,-500.0,0.00013795,2]
[331748422,1720749041399,-500.0,0.00013795,2]
[331748423,1720749041407,-500.0,0.00013795,2]
[331748424,1720749041416,-500.0,0.00013795,2]
[331748425,1720749041425,-500.55429177,0.00013795,2]
[331748426,1720749041434,-500.0,0.00013795,2]
[331748427,1720749041443,-1026.41,0.00013795,2]
[331748428,1720749041452,-246.60448342,0.00013795,2]
[331748429,1720749041461,-528.26686829,0.00013795,2]
[331748430,1720749041470,-500.0,0.00013795,2]
[331748431,1720749041479,-569.53955234,0.00013795,2]
[331748432,1720749041488,-501.26430791,0.00013795,2]
[331748433,1720749041501,-500.0,0.00013795,2]
[331748434,1720749041511,-500.0,0.00013795,2]
[331748435,1720749041520,-502.63206424,0.00013795,2]
[331748436,1720749041529,-500.0,0.00013795,2]
[331748437,1720749041538,-500.0,0.00013795,2]
[331748438,1720749041547,-500.0,0.00013795,2]
[331748439,1720749041556,-500.0,0.00013795,2]
[331748440,1720749041565,-500.53951966,0.00013795,2]
[331748441,1720749041576,-501.19728731,0.00013795,2]
[331748442,1720749041585,-855.97,0.00013795,2]
[331748443,1720749041594,-500.0,0.00013795,2]
[331748444,1720749041603,-500.0,0.00013795,2]
[331748445,1720749041612,-500.0,0.00013795,2]
[331748446,1720749041621,-500.0,0.00013795,2]
[331748447,1720749041630,-501.67378214,0.00013795,2]
[331748448,1720749041639,-2570.93,0.00013795,2]
[331748449,1720749041648,-500.0,0.00013795,2]
[331748450,1720749041755,-500.0,0.00013795,2]
[331748451,1720749041782,-507.4166516,0.00013795,2]
[331748452,1720749041791,-500.0,0.00013795,2]
[331748453,1720749041801,-560.43025304,0.00013795,2]
[331748454,1720749041812,-500.0,0.00013795,2]
[331748455,1720749041822,-502.31142519,0.00013795,2]
[331748456,1720749041832,-593.94880198,0.00013795,2]
[331748457,1720749041841,-922.44,0.00013795,2]
[331748458,1720749041851,-603.12564448,0.00013795,2]
[331748459,1720749041860,-500.0,0.00013795,2]
[331748460,1720749041869,-500.0,0.00013795,2]
[331748461,1720749041881,-318.47010042,0.00013795,2]
[331748462,1720749041890,-500.0,0.00013795,2]
[331748463,1720749041901,-501.96353798,0.00013795,2]
[331748464,1720749041911,-502.96811896,0.00013795,2]
[331748465,1720749041920,-500.0,0.00013795,2]
[331748466,1720749041929,-513.89436558,0.00013795,2]
[331748467,1720749041940,-500.0,0.00013795,2]
[331748468,1720749041950,-2418.78,0.00013795,2]
[331748469,1720749041960,-500.0,0.00013795,2]
[331748470,1720749041970,-500.0,0.00013795,2]
[331748471,1720749041979,-500.0,0.00013795,2]
[331748472,1720749041988,-500.0,0.00013795,2]
[331748473,1720749041997,-500.7860662,0.00013795,2]
[331748474,1720749042007,-500.0,0.00013795,2]
[331748475,1720749042016,-500.0,0.00013795,2]
[331748476,1720749042026,-500.0,0.00013795,2]
[331748477,1720749042035,-500.0,0.00013795,2]
[331748478,1720749042044,-517.47,0.00013795,2]
[331748479,1720749042054,-500.0,0.00013795,2]
[331748480,1720749042064,-500.0,0.00013795,2]
[331748481,1720749042073,-1170.71,0.00013795,2]
[331748482,1720749042082,-500.0,0.00013795,2]
[331748483,1720749042091,-500.0,0.00013795,2]
[331748484,1720749042101,-500.0,0.00013795,2]
[331748485,1720749042110,-636.47290197,0.00013795,2]
[331748486,1720749042120,-500.0,0.00013795,2]
[331748487,1720749042129,-566.53957097,0.00013795,2]
[331748488,1720749042138,-500.0,0.00013795,2]
[331748489,1720749042147,-500.22830902,0.00013795,2]
[331748490,1720749042156,-613.81,0.00013795,2]
[331748491,1720749042165,-500.0,0.00013795,2]
[331748492,1720749042174,-579.25878348,0.00013795,2]
[331748493,1720749042184,-501.56319152,0.00013795,2]
[331748494,1720749042194,-500.0,0.00013795,2]
[331748495,1720749042204,-500.0,0.00013795,2]
[331748496,1720749042216,-500.0,0.00013795,2]
[331748497,1720749042225,-500.0,0.00013796,2]
[331748498,1720749042235,-501.16727349,0.00013796,2]
[331748499,1720749042244,-500.0,0.00013796,2]
[331748500,1720749042253,-501.51516587,0.00013796,2]
[331748501,1720749042265,-500.0,0.00013796,2]
[331748502,1720749042275,-500.0,0.00013796,2]
[331748503,1720749042284,-501.59487337,0.00013796,2]
[331748504,1720749042295,-500.0,0.00013796,2]
[331748505,1720749042306,-500.0,0.00013796,2]
[331748506,1720749042316,-546.27,0.00013796,2]
[331748507,1720749042326,-501.54290901,0.00013796,2]
[331748508,1720749042336,-500.0,0.00013796,2]
[331748509,1720749042347,-501.50817198,0.00013796,2]
[331748510,1720749042356,-500.0,0.00013796,2]
[331748511,1720749042366,-20024.58575869,0.00013796,2]
[331748512,1720749042375,-500.69721675,0.00013796,2]
[331748513,1720749042385,-500.0,0.00013796,2]
[331748514,1720749042395,-501.36886328,0.00013796,2]
[331748515,1720749042403,-500.0,0.00013796,2]
[331748516,1720749042413,-500.0,0.00013796,2]
[331748517,1720749042423,-500.8680552,0.00013796,2]
[331748518,1720749042432,-500.0,0.00013796,2]
[331748519,1720749042444,-500.0,0.00013796,2]
[331748520,1720749042455,-501.12549239,0.00013796,2]
[331748521,1720749042466,-501.66236716,0.00013796,2]
[331748522,1720749042476,-500.0,0.00013796,2]
[331748523,1720749042486,-501.69308029,0.00013796,2]
[331748524,1720749042497,-500.77497451,0.00013796,2]
[331748525,1720749042512,-500.0,0.00013796,2]
[331748526,1720749042521,-500.0,0.00013796,2]
[331748527,1720749042531,-500.57145792,0.00013796,2]
[331748528,1720749042540,-500.0,0.00013796,2]
[331748529,1720749042549,-501.26924011,0.00013796,2]
[331748530,1720749042559,-502.8955165,0.00013796,2]
[331748531,1720749042569,-500.84484946,0.00013796,2]
[331748532,1720749042579,-500.0,0.00013796,2]
[331748533,1720749042590,-501.5143764,0.00013796,2]
[331748534,1720749042599,-501.41512775,0.00013796,2]
[331748535,1720749042609,-500.0,0.00013796,2]
[331748536,1720749042618,-500.43832983,0.00013796,2]
[331748537,1720749042627,-501.06025977,0.00013796,2]
[331748538,1720749042637,-500.0,0.00013796,2]
[331748539,1720749042646,-501.6262571,0.00013796,2]
[331748540,1720749042655,-500.0,0.00013796,2]
[331748541,1720749042664,-507.63900228,0.00013796,2]
[331748542,1720749042674,-500.0,0.00013796,2]
[331748543,1720749042684,-501.81018975,0.00013796,2]
[331748544,1720749042692,-500.0,0.00013796,2]
[331748545,1720749042701,-500.0,0.00013796,2]
[331748546,1720749042710,-500.0,0.00013796,2]
[331748547,1720749042719,-500.94066175,0.00013796,2]
[331748548,1720749042728,-570.50385793,0.00013796,2]
[331748549,1720749042737,-500.0,0.00013796,2]
[331748550,1720749042746,-554.46350059,0.00013796,2]
[331748551,1720749042756,-501.38202192,0.00013796,2]
[331748552,1720749042766,-156.61184506,0.00013796,2]
[331748553,1720749042775,-500.0,0.00013796,2]
[331748554,1720749042784,-500.0,0.00013796,2]
[331748555,1720749042794,-500.74186653,0.00013796,2]
[331748556,1720749042803,-565.55888801,0.00013796,2]
[331748557,1720749042812,-500.97898203,0.00013796,2]
[331748558,1720749042821,-548.48629214,0.00013796,2]
[331748560,1720749042831,-671.18,0.00013796,2]
[331748562,1720749042840,-501.08014116,0.00013796,2]
[331748563,1720749042849,-500.0,0.00013796,2]
[331748564,1720749042858,-502.11639059,0.00013796,2]
[331748565,1720749042867,-501.76751767,0.00013796,2]
[331748566,1720749042876,-500.78737698,0.00013796,2]
[331748567,1720749042886,-500.0,0.00013796,2]
[331748568,1720749042896,-512.65984956,0.00013796,2]
[331748569,1720749042905,-786.65,0.00013796,2]
[331748570,1720749042915,-500.94766089,0.00013796,2]
[331748571,1720749042924,-501.4277499,0.00013796,2]
[331748572,1720749042933,-501.83278354,0.00013796,2]
[331748573,1720749042943,-500.0,0.00013796,2]
[331748574,1720749042952,-500.0,0.00013796,2]
[331748575,1720749042962,-500.84224764,0.00013796,2]
[331748576,1720749042971,-500.0,0.00013796,2]
[331748577,1720749042980,-500.73848203,0.00013796,2]
[331748578,1720749042990,-501.16666815,0.00013796,2]
[331748579,1720749042999,-501.6058228,0.00013796,2]
[331748580,1720749043010,-502.61412013,0.00013796,2]
[331748581,1720749043019,-176.79406336,0.00013796,2]
[331748582,1720749043028,-500.0,0.00013796,2]
[331748583,1720749043038,-500.0,0.00013796,2]
[331748584,1720749043047,-500.85200085,0.00013796,2]
[331748585,1720749043056,-500.0,0.00013796,2]
[331748586,1720749043065,-500.0,0.00013796,2]
[331748587,1720749043074,-501.76791171,0.00013796,2]
[331748588,1720749043083,-500.0,0.00013796,2]
[331748589,1720749043098,-501.50902736,0.00013796,2]
[331748590,1720749043107,-500.84714155,0.00013796,2]
[331748591,1720749043117,-500.0,0.00013796,2]
[331748592,1720749043126,-502.18968772,0.00013796,2]
[331748593,1720749043135,-338.91,0.00013796,2]
[331748594,1720749043144,-552.20398499,0.00013796,2]
[331748595,1720749043154,-500.0,0.00013796,2]
[331748596,1720749043162,-500.83864826,0.00013796,2]
[331748597,1720749043171,-502.11362925,0.00013796,2]
[331748598,1720749043180,-500.0,0.00013796,2]
[331748599,1720749043189,-501.79858135,0.00013796,2]
[331748600,1720749043199,-500.0,0.00013796,2]
[331748601,1720749043208,-500.0,0.00013796,2]
[331748602,1720749043217,-501.6724836,0.00013796,2]
[331748603,1720749043226,-500.0,0.00013796,2]
[331748604,1720749043236,-500.0,0.00013796,2]
[331748605,1720749043245,-501.83856259,0.00013796,2]
[331748606,1720749043255,-500.71225736,0.00013796,2]
[331748607,1720749043264,-500.0,0.00013796,2]
[331748608,1720749043274,-500.61398349,0.00013796,2]
[331748609,1720749043283,-503.00373703,0.00013796,2]
[331748610,1720749043292,-500.0,0.00013796,2]
[331748611,1720749043302,-500.0,0.00013796,2]
[331748612,1720749043311,-500.0,0.00013796,2]
[331748613,1720749043320,-501.78170446,0.00013796,2]
[331748615,1720749043329,-500.0,0.00013796,2]
[331748617,1720749043338,-500.55872613,0.00013796,2]
[331748619,1720749043347,-502.02517023,0.00013796,2]
[331748620,1720749043356,-500.49642459,0.00013796,2]
[331748621,1720749043365,-500.77248747,0.00013796,2]
[331748622,1720749043374,-501.04997799,0.00013796,2]
[331748623,1720749043382,-500.0,0.00013796,2]
[331748624,1720749043391,-358.7050823,0.00013796,2]
[331748625,1720749043400,-500.0,0.00013796,2]
[331748626,1720749043409,-500.0,0.00013796,2]
[331748627,1720749043418,-500.29293988,0.00013796,2]
[331748628,1720749043427,-500.48969444,0.00013796,2]
[331748629,1720749043436,-500.24634299,0.00013796,2]
[331748630,1720749043445,-501.19793481,0.00013796,2]
[331748631,1720749043454,-504.7,0.00013796,2]
[331748632,1720749043463,-500.93104125,0.00013796,2]
[331748633,1720749043472,-500.78891669,0.00013796,2]
[331748634,1720749043481,-500.84473327,0.00013796,2]
[331748635,1720749043491,-500.62696668,0.00013796,2]
[331748638,1720749043506,-501.99659591,0.00013796,2]
[331748640,1720749043516,-500.0,0.00013796,2]
[331748643,1720749043525,-500.6584165,0.00013796,2]
[331748645,1720749043535,-500.64977244,0.00013796,2]
[331748647,1720749043544,-898.94,0.00013796,2]
[331748649,1720749043553,-501.56929415,0.00013796,2]
[331748651,1720749043563,-500.0,0.00013796,2]
[331748652,1720749043573,-500.8609514,0.00013796,2]
[331748653,1720749043582,-500.59073061,0.00013796,2]
[331748654,1720749043591,-500.0,0.00013796,2]
[331748655,1720749043600,-500.0,0.00013796,2]
[331748656,1720749043609,-501.74736376,0.00013796,2]
[331748657,1720749043619,-500.0,0.00013796,2]
[331748658,1720749043628,-501.03664446,0.00013796,2]
[331748659,1720749043637,-500.46853041,0.00013796,2]
[331748660,1720749043646,-500.0,0.00013796,2]
[331748661,1720749043655,-500.66375746,0.00013796,2]
[331748662,1720749043665,-501.50176772,0.00013796,2]
[331748663,1720749043674,-500.0,0.00013796,2]
[331748664,1720749043683,-500.0,0.00013796,2]
[331748665,1720749043693,-500.99031246,0.00013796,2]
[331748666,1720749043702,-501.84112504,0.00013796,2]
[331748667,1720749043711,-500.0,0.00013796,2]
[331748668,1720749043720,-501.70382425,0.00013796,2]
[331748669,1720749043730,-500.0,0.00013796,2]
[331748670,1720749043739,-500.58977291,0.00013796,2]
[331748671,1720749043749,-500.91069971,0.00013796,2]
[331748672,1720749043760,-500.0,0.00013796,2]
[331748673,1720749043770,-501.84443234,0.00013796,2]
[331748674,1720749043779,-500.82669939,0.00013796,2]
[331748675,1720749043788,-500.0,0.00013796,2]
[331748676,1720749043798,-500.66727359,0.00013796,2]
[331748677,1720749043808,-644.07,0.00013796,2]
[331748678,1720749043818,-501.67181046,0.00013796,2]
[331748679,1720749043827,-501.1012664,0.00013796,2]
[331748680,1720749043836,-500.0,0.00013796,2]
[331748681,1720749043846,-500.0,0.00013796,2]
[331748682,1720749043856,-500.34565473,0.00013796,2]
[331748683,1720749043866,-500.73998375,0.00013796,2]
[331748684,1720749043875,-500.0,0.00013796,2]
[331748685,1720749043885,-501.08957355,0.00013796,2]
[331748686,1720749043895,-500.0,0.00013796,2]
[331748687,1720749043906,-300.93991565,0.00013796,2]
[331748688,1720749043917,-501.38384093,0.00013796,2]
[331748689,1720749043927,-500.0,0.00013796,2]
[331748690,1720749043936,-500.0,0.00013796,2]
[331748691,1720749043946,-500.0,0.00013796,2]
[331748692,1720749043956,-501.11827722,0.00013796,2]
[331748693,1720749043966,-500.63873678,0.00013796,2]
[331748694,1720749043975,-500.0,0.00013796,2]
[331748695,1720749043985,-500.0,0.00013796,2]
[331748696,1720749043994,-501.27036043,0.00013796,2]
[331748697,1720749044003,-287.4466776,0.00013796,2]
[331748698,1720749044015,-500.0,0.00013796,2]
[331748699,1720749044025,-502.13630415,0.00013796,2]
[331748700,1720749044034,-500.0,0.00013796,2]
[331748701,1720749044044,-195.79471814,0.00013796,2]
[331748702,1720749044053,-500.76467504,0.00013796,2]
[331748703,1720749044062,-500.0,0.00013796,2]
[331748704,1720749044072,-500.0,0.00013796,2]
[331748705,1720749044081,-501.48700245,0.00013796,2]
[331748706,1720749044090,-500.0,0.00013796,2]
[331748707,1720749044100,-500.0,0.00013796,2]
[331748708,1720749044109,-500.83664221,0.00013796,2]
[331748709,1720749044119,-500.2822904,0.00013796,2]
[331748710,1720749044129,-500.0,0.00013796,2]
[331748711,1720749044139,-158.87335828,0.00013796,2]
[331748712,1720749044149,-734.1,0.00013796,2]
[331748713,1720749044158,-500.52962383,0.00013796,2]
[331748714,1720749044167,-501.66198401,0.00013796,2]
[331748715,1720749044177,-514.76576386,0.00013796,2]
[331748716,1720749044188,-500.0,0.00013796,2]
[331748717,1720749044197,-532.34982912,0.00013796,2]
[331748718,1720749044206,-500.70619677,0.00013796,2]
[331748719,1720749044215,-500.0,0.00013796,2]
[331748720,1720749044224,-500.0,0.00013796,2]
[331748721,1720749044235,-500.0,0.00013796,2]
[331748722,1720749044352,-171.04683569,0.00013796,2]
[331748723,1720749044362,-500.0,0.00013796,2]
[331748724,1720749044371,-501.2721769,0.00013796,2]
[331748725,1720749044381,-191.73657397,0.00013796,2]
[331748726,1720749044390,-252.0290022,0.00013796,2]
[331748727,1720749044400,-500.0,0.00013796,2]
[331748728,1720749044409,-503.09704438,0.00013796,2]
[331748729,1720749044418,-500.0,0.00013796,2]
[331748730,1720749044428,-500.0,0.00013796,2]
[331748731,1720749044437,-500.84665559,0.00013796,2]
[331748732,1720749044446,-305.42563256,0.00013796,2]
[331748733,1720749044455,-500.0,0.00013796,2]
[331748734,1720749044464,-500.68367475,0.00013796,2]
[331748735,1720749044473,-168.06258233,0.00013796,2]
[331748736,1720749044483,-500.0,0.00013796,2]
[331748737,1720749044492,-502.57719754,0.00013796,2]
[331748738,1720749044502,-343.80174587,0.00013796,2]
[331748739,1720749044773,-156.19825413,0.00013796,2]
[331748740,1720749044783,-500.0,0.00013796,2]
[331748741,1720749044792,-500.0,0.00013796,2]
[331748742,1720749044802,-1893.26,0.00013796,2]
[331748743,1720749044811,-500.0,0.00013796,2]
[331748744,1720749044821,-500.0,0.00013796,2]
[331748745,1720749044830,-500.0,0.00013796,2]
[331748746,1720749044840,-500.0,0.00013796,2]
[331748747,1720749044849,-500.0,0.00013796,2]
[331748748,1720749044859,-500.0,0.00013796,2]
[331748749,1720749044868,-126.64072777,0.00013796,2]
[331748750,1720749044880,-373.35927223,0.00013796,2]
[331748751,1720749044889,-61.73438934,0.00013796,2]
[331748752,1720749044902,-438.26561066,0.00013796,2]
[331748753,1720749044911,-529.51614866,0.00013796,2]
[331748754,1720749044921,-500.0,0.00013796,2]
[331748755,1720749044930,-412.00897786,0.00013796,2]
[331748756,1720749044942,-87.99102214,0.00013796,2]
[331748757,1720749044952,-500.0,0.00013796,2]
[331748758,1720749044962,-518.30558875,0.00013796,2]
[331748759,1720749044971,-500.0,0.00013796,2]
[331748760,1720749044981,-201.64792229,0.00013796,2]
[331748761,1720749044993,-298.35207771,0.00013796,2]
[331748762,1720749045002,-292.55487923,0.00013796,2]
[331748763,1720749045015,-207.44512077,0.00013796,2]
[331748764,1720749045025,-500.0,0.00013796,2]
[331748765,1720749045034,-452.45845779,0.00013796,2]
[331748766,1720749045054,-47.54154221,0.00013796,2]
[331748767,1720749045063,-500.0,0.00013796,2]
[331748768,1720749045073,-500.0,0.00013796,2]
[331748769,1720749045082,-186.24595327,0.00013796,2]
[331748770,1720749045092,-292.40586494,0.00013796,2]
[331748771,1720749045101,-500.0,0.00013796,2]
[331748772,1720749045111,-500.0,0.00013796,2]
[331748773,1720749045121,-500.0,0.00013796,2]
[331748774,1720749045130,-500.0,0.00013796,2]
[331748775,1720749045141,-139.66143218,0.00013796,2]
[331748776,1720749045314,-292.73680835,0.00013796,2]
[331748777,1720749045326,-67.60175947,0.00013796,2]
[331748778,1720749045336,-427.22658798,0.00013796,2]
[331748779,1720749045368,-72.77341202,0.00013796,2]
[331748780,1720749045378,-500.0,0.00013796,2]
[331748781,1720749045387,-500.0,0.00013796,2]
[331748782,1720749045397,-500.0,0.00013796,2]
[331748783,1720749045406,-500.0,0.00013796,2]
[331748784,1720749045415,-500.0,0.00013796,2]
[331748785,1720749045425,-500.0,0.00013796,2]
[331748786,1720749045434,-500.0,0.00013796,2]
[331748787,1720749045443,-151.0,0.00013796,2]
[331748788,1720749045452,-233.484576,0.00013796,2]
[331748789,1720749045462,-500.0,0.00013796,2]
[331748790,1720749045471,-233.484576,0.00013796,2]
[331748791,1720749045481,-500.0,0.00013796,2]
[331748792,1720749045490,-500.0,0.00013797,2]
[331748793,1720749045500,-501.35882131,0.00013797,2]
[331748794,1720749045515,-464.0583897,0.00013797,2]
[331748795,1720749045524,-501.53416051,0.00013797,2]
[331748796,1720749045534,-500.39924456,0.00013797,2]
[331748797,1720749045545,-500.0,0.00013797,2]
[331748798,1720749045555,-501.48025662,0.00013797,2]
[331748799,1720749045564,-502.30875334,0.00013797,2]
[331748800,1720749045573,-500.37337815,0.00013797,2]
[331748801,1720749045585,-500.0,0.00013797,2]
[331748802,1720749045595,-502.34473759,0.00013797,2]
[331748803,1720749045604,-502.33812045,0.00013797,2]
[331748804,1720749045614,-501.94662319,0.00013797,2]
[331748805,1720749045623,-612.19092482,0.00013797,2]
[331748806,1720749045632,-500.0,0.00013797,2]
[331748807,1720749045642,-502.52396216,0.00013797,2]
[331748808,1720749045652,-500.0,0.00013797,2]
[331748809,1720749045662,-501.16395252,0.00013797,2]
[331748810,1720749045671,-500.0,0.00013797,2]
[331748811,1720749045681,-500.0,0.00013797,2]
[331748812,1720749045691,-500.81436748,0.00013797,2]
[331748813,1720749045701,-500.0,0.00013797,2]
[331748814,1720749045710,-500.0,0.00013797,2]
[331748815,1720749045720,-501.40551493,0.00013797,2]
[331748816,1720749045730,-304.74550809,0.00013797,2]
[331748817,1720749045740,-584.57935362,0.00013797,2]
[331748818,1720749045750,-500.56619967,0.00013797,2]
[331748819,1720749045760,-500.0,0.00013797,2]
[331748820,1720749045769,-500.0,0.00013797,2]
[331748821,1720749045778,-500.0,0.00013797,2]
[331748822,1720749045788,-200.0,0.00013797,7]
[331748823,1720749045797,-502.0132463,0.00013797,2]
[331748824,1720749045806,-500.0,0.00013797,2]
[331748825,1720749045815,-500.49802058,0.00013797,2]
[331748826,1720749045825,-500.78597221,0.00013797,2]
[331748827,1720749045835,-297.55344646,0.00013797,2]
[331748828,1720749045845,-500.0,0.00013797,2]
[331748829,1720749045855,-344.30910576,0.00013797,2]
[331748830,1720749045864,-500.0,0.00013797,2]
[331748831,1720749045874,-237.42870458,0.00013797,2]
[331748832,1720749045884,-500.0,0.00013797,2]
[331748833,1720749045894,-235.8178002,0.00013797,2]
[331748834,1720749045904,-430.32330668,0.00013797,2]
[331748835,1720749045914,-500.0,0.00013797,2]
[331748836,1720749045924,-500.0,0.00013797,2]
[331748837,1720749045934,-371.34170709,0.00013797,2]
[331748838,1720749045946,-128.65829291,0.00013797,2]
[331748839,1720749045956,-598.64133452,0.00013797,2]
[331748840,1720749045966,-500.0,0.00013797,2]
[331748841,1720749045975,-500.0,0.00013797,2]
[331748842,1720749045985,-264.90537257,0.00013797,2]
[331748843,1720749045997,-235.09462743,0.00013797,2]
[331748844,1720749046007,-500.0,0.00013797,2]
[331748845,1720749046017,-531.72960133,0.00013797,2]
[331748846,1720749046027,-210.90768757,0.00013797,2]
[331748847,1720749046037,-500.0,0.00013797,2]
[331748848,1720749046046,-337.80764109,0.00013797,2]
[331748849,1720749046058,-162.19235891,0.00013797,2]
[331748850,1720749046068,-149.40764109,0.00013797,2]
[331748851,1720749046344,-386.80000011,0.00013229,2]
[331748852,1720749047132,-551.65203341,0.00013229,2]
[331748853,1720749047338,-1433.25,0.00013229,2]
[331748854,1720749047349,-4078.93082997,0.00013229,2]
[331748855,1720749047358,-1241.61828,0.00013796,2]
[331748856,1720749047368,-330.05089003,0.00013796,2]
[331748857,1720749047380,-911.56738997,0.00013796,2]
[331748858,1720749047389,-350.59235891,0.00013797,2]
[331748859,1720749047399,-500.0,0.00013797,2]
[331748860,1720749047409,-430.61787729,0.00013797,2]
[331748861,1720749047418,-500.0,0.00013797,2]
[331748862,1720749047428,-609.77910888,0.00013797,2]
[331748863,1720749047438,-405.69024712,0.00013797,2]
[331748864,1720749047447,-500.0,0.00013797,2]
[331748865,1720749047457,-243.60979511,0.00013797,2]
[331748866,1720749047468,-144.68855736,0.00013797,2]
[331748867,1720749047478,-500.0,0.00013797,2]
[331748868,1720749047487,-190.64793525,0.00013797,2]
[331748869,1720749047499,-500.0,0.00013797,2]
[331748870,1720749047508,-254.57787107,0.00013797,2]
[331748871,1720749047520,-403.23257553,0.00013797,2]
[331748872,1720749047530,-422.53353387,0.00013797,2]
[331748873,1720749047540,-500.0,0.00013797,2]
[331748874,1720749047553,-154.97812874,0.00013797,2]
[331748875,1720749047563,-157.40300472,0.00013797,2]
[331748876,1720749047572,-531.52841302,0.00013797,2]
[331748877,1720749047585,-151.0,0.00013797,2]
[331748878,1720749047594,-457.60492464,0.00013797,2]
[331748879,1720749047603,-1947.67,0.00013797,2]
[331748880,1720749047611,-537.74218902,0.00013797,2]
[331748881,1720749047621,-151.0,0.00013797,2]
[331748882,1720749047631,-151.0,0.00013797,2]
[331748883,1720749047640,-151.0,0.00013797,2]
[331748884,1720749047650,-151.0,0.00013797,2]
[331748885,1720749047659,-500.0,0.00013797,2]
[331748886,1720749047670,-151.0,0.00013797,2]
[331748887,1720749047679,-500.0,0.00013797,2]
[331748888,1720749047689,-151.0,0.00013797,2]
[331748889,1720749047698,-151.0,0.00013797,2]
[331748890,1720749047708,-151.0,0.00013797,2]
[331748891,1720749047717,-500.0,0.00013797,2]
[331748892,1720749047726,-151.0,0.00013797,2]
[331748893,1720749047736,-389.46952407,0.00013797,2]
[331748894,1720749047745,-500.0,0.00013797,2]
[331748895,1720749047755,-500.0,0.00013797,2]
[331748896,1720749047765,-500.0,0.00013797,2]
[331748897,1720749047774,-150.0,0.00013798,2]
[331748898,1720749047784,-1222.23194848,0.00013799,2]
[331748899,1720749047793,-500.0,0.00013799,2]
[331748900,1720749047802,-500.23953684,0.00013799,2]
[331748901,1720749047812,-500.0,0.00013799,2]
[331748902,1720749047821,-501.99239956,0.00013799,2]
[331748903,1720749047831,-500.0,0.00013799,2]
[331748904,1720749047841,-500.0,0.00013799,2]
[331748905,1720749047850,-500.0,0.00013799,2]
[331748906,1720749047861,-500.0,0.00013799,2]
[331748907,1720749047871,-151.0,0.00013799,2]
[331748908,1720749047880,-151.0,0.00013799,2]
[331748909,1720749047890,-152.125273,0.00013799,2]
[331748910,1720749047899,-587.84276762,0.00013799,2]
[331748911,1720749047909,-183.60514747,0.00013799,2]